fUST/lending_fUST_20250516
["ID","MTS","AMOUNT","RATE_DAILY","PERIOD"]
[361211476,1747344648366,-1290.84,0.00013835,2]
[361211477,1747344648375,-858.77,0.00013835,2]
[361211478,1747344648385,-929.23,0.00013835,2]
[361211479,1747344648394,-450.0,0.00013835,2]
[361211480,1747344648404,-758.48,0.00013835,2]
[361211481,1747344648414,-516.21,0.00013835,2]
[361211482,1747344648424,-450.0,0.00013835,2]
[361211483,1747344648434,-1067.28,0.00013835,2]
[361211484,1747344648443,-486.05,0.00013835,2]
[361211485,1747344648453,-1855.42,0.00013835,2]
[361211486,1747344648463,-450.0,0.00013835,2]
[361211487,1747344648473,-450.0,0.00013835,2]
[361211488,1747344648483,-1776.07,0.00013835,2]
[361211489,1747344648493,-450.0,0.00013835,2]
[361211490,1747344648503,-2649.52,0.00013835,2]
[361211491,1747344648512,-450.0,0.00013835,2]
[361211492,1747344648522,-2497.61,0.00013835,2]
[361211493,1747344648533,-450.0,0.00013835,2]
[361211494,1747344648542,-450.0,0.00013835,2]
[361211495,1747344648552,-450.0,0.00013835,2]
[361211496,1747344648561,-450.0,0.00013835,2]
[361211497,1747344648571,-450.0,0.00013835,2]
[361211498,1747344648581,-450.0,0.00013835,2]
[361211499,1747344648590,-430.85222349,0.00013835,2]
[361211500,1747344648600,-450.0,0.00013835,2]
[361211501,1747344648611,-450.0,0.00013835,2]
[361211502,1747344648620,-152.788761,0.00013835,2]
[361211503,1747344648630,-766.39,0.00013835,2]
[361211504,1747344648640,-450.0,0.00013835,2]
[361211505,1747344648651,-2141.58,0.00013835,2]
[361211506,1747344648660,-450.0,0.00013835,2]
[361211507,1747344648671,-609.1,0.00013835,2]
[361211508,1747344648680,-450.0,0.00013835,2]
[361211509,1747344648690,-1384.56,0.00013835,2]
[361211510,1747344648699,-450.0,0.00013835,2]
[361211511,1747344648708,-450.0,0.00013835,2]
[361211512,1747344648718,-450.0,0.00013835,2]
[361211513,1747344648727,-450.0,0.00013835,2]
[361211514,1747344648738,-450.0,0.00013835,2]
[361211515,1747344648747,-450.0,0.00013835,2]
[361211516,1747344648757,-450.0,0.00013835,2]
[361211517,1747344648766,-151.0,0.00013835,2]
[361211518,1747344648776,-450.0,0.00013835,2]
[361211519,1747344648786,-450.0,0.00013835,2]
[361211520,1747344648796,-450.0,0.00013835,2]
[361211521,1747344648806,-990.28,0.00013835,2]
[361211522,1747344648816,-450.0,0.00013835,2]
[361211523,1747344648825,-450.0,0.00013835,2]
[361211524,1747344648835,-1268.15,0.00013835,2]
[361211525,1747344648845,-927.06,0.00013835,2]
[361211526,1747344648855,-408.44,0.00013835,2]
[361211527,1747344648866,-563.45,0.00013835,2]
[361211528,1747344648877,-450.0,0.00013835,2]
[361211529,1747344648886,-450.0,0.00013835,2]
[361211530,1747344648896,-803.62,0.00013835,2]
[361211531,1747344648906,-450.0,0.00013835,2]
[361211532,1747344648915,-450.0,0.00013835,2]
[361211533,1747344648924,-450.0,0.00013835,2]
[361211534,1747344648934,-450.0,0.00013835,2]
[361211535,1747344648944,-436.88235868,0.00013835,2]
[361211536,1747344648953,-7259.87,0.00013835,2]
[361211537,1747344648963,-1271.98,0.00013835,2]
[361211538,1747344648974,-450.0,0.00013835,2]
[361211539,1747344648983,-1091.55,0.00013835,2]
[361211540,1747344649076,-450.0,0.00013835,2]
[361211541,1747344649104,-450.0,0.00013835,2]
[361211542,1747344649118,-621.45,0.00013835,2]
[361211543,1747344649128,-559.27,0.00013835,2]
[361211544,1747344649139,-450.0,0.00013835,2]
[361211545,1747344649149,-450.0,0.00013835,2]
[361211546,1747344649159,-1156.68,0.00013835,2]
[361211547,1747344649170,-450.0,0.00013835,2]
[361211548,1747344649182,-450.0,0.00013835,2]
[361211549,1747344649195,-1775.83,0.00013835,2]
[361211550,1747344649205,-450.0,0.00013835,2]
[361211551,1747344649216,-450.0,0.00013835,2]
[361211552,1747344649227,-433.36724138,0.00013835,2]
[361211553,1747344649238,-450.0,0.00013835,2]
[361211554,1747344649248,-450.0,0.00013835,2]
[361211555,1747344649258,-494.83,0.00013835,2]
[361211556,1747344649268,-3787.56,0.00013835,2]
[361211557,1747344649278,-450.0,0.00013835,2]
[361211558,1747344649288,-450.0,0.00013835,2]
[361211559,1747344649298,-314.33516537,0.00013879,2]
[361211560,1747344649308,-160.0,0.00013879,2]
[361211561,1747344649319,-160.0,0.00013879,2]
[361211562,1747344649328,-212.23495278,0.00013879,2]
[361211563,1747344649339,-694.98460047,0.00013879,2]
[361211564,1747344649348,-160.0,0.00013879,2]
[361211565,1747344649360,-422.32131761,0.00013879,2]
[361211566,1747344649370,-12629.50215115,0.00013879,2]
[361211567,1747344649380,-160.0,0.00013879,2]
[361211568,1747344649390,-151.0,0.00013879,2]
[361211569,1747344649400,-151.0,0.00013879,2]
[361211570,1747344649409,-151.0,0.00013879,2]
[361211571,1747344649419,-151.0,0.00013879,2]
[361211572,1747344649429,-151.0,0.00013879,2]
[361211573,1747344649438,-151.0,0.00013879,2]
[361211574,1747344649448,-178.36,0.00013886,2]
[361211575,1747344649458,-174.6556,0.00013887,2]
[361211576,1747344649468,-151.0,0.000139,2]
[361211577,1747344649477,-151.0,0.000139,2]
[361211578,1747344649487,-151.0,0.000139,2]
[361211579,1747344649497,-151.0,0.000139,2]
[361211580,1747344649507,-180.491617,0.000139,2]
[361211581,1747344649516,-180.491617,0.000139,2]
[361211582,1747344649525,-151.0,0.000139,2]
[361211583,1747344649535,-151.0,0.000139,2]
[361211584,1747344649545,-178.36,0.00013907,2]
[361211585,1747344649554,-151.0,0.00013972,2]
[361211586,1747344649563,-151.0,0.00013972,2]
[361211587,1747344649573,-151.0,0.00013972,2]
[361211588,1747344649583,-450.0,0.00013972,2]
[361211589,1747344649593,-450.0,0.00013972,2]
[361211590,1747344649603,-498.26338017,0.00013972,2]
[361211591,1747344649615,-450.0,0.00013972,2]
[361211592,1747344649624,-450.0,0.00013972,2]
[361211593,1747344649633,-433.65,0.00013972,2]
[361211594,1747344649643,-450.0,0.00013972,2]
[361211595,1747344649653,-450.0,0.00013972,2]
[361211596,1747344649662,-450.0,0.00013972,2]
[361211597,1747344649671,-450.0,0.00013972,2]
[361211598,1747344649681,-450.0,0.00013972,2]
[361211599,1747344649691,-450.0,0.00013972,2]
[361211600,1747344649701,-300.0,0.00013972,2]
[361211601,1747344649710,-450.0,0.00013972,2]
[361211602,1747344649719,-450.0,0.00013972,2]
[361211603,1747344649729,-450.0,0.00013972,2]
[361211604,1747344649738,-486.08,0.00013972,2]
[361211605,1747344649748,-450.0,0.00013972,2]
[361211606,1747344649758,-450.0,0.00013972,2]
[361211607,1747344649767,-450.0,0.00013972,2]
[361211608,1747344649777,-450.0,0.00013972,2]
[361211609,1747344649786,-450.0,0.00013972,2]
[361211610,1747344649795,-450.0,0.00013972,2]
[361211611,1747344649805,-450.0,0.00013972,2]
[361211612,1747344649814,-450.0,0.00013972,2]
[361211613,1747344649823,-300.0,0.00013972,2]
[361211614,1747344649833,-450.0,0.00013972,2]
[361211615,1747344649842,-450.0,0.00013972,2]
[361211616,1747344649851,-450.0,0.00013972,2]
[361211617,1747344649863,-450.0,0.00013972,2]
[361211618,1747344649873,-450.0,0.00013972,2]
[361211619,1747344649882,-151.0,0.00013972,2]
[361211620,1747344649891,-450.0,0.00013972,2]
[361211621,1747344649901,-450.0,0.00013972,2]
[361211622,1747344649911,-450.0,0.00013972,2]
[361211623,1747344649921,-450.0,0.00013972,2]
[361211624,1747344649931,-450.0,0.00013972,2]
[361211625,1747344649940,-151.0,0.00013972,2]
[361211626,1747344649950,-450.0,0.00013972,2]
[361211627,1747344649960,-151.0,0.00013972,2]
[361211628,1747344649970,-450.0,0.00013972,2]
[361211629,1747344649979,-450.0,0.00013972,2]
[361211630,1747344649990,-450.0,0.00013972,2]
[361211631,1747344649999,-300.0,0.00013972,2]
[361211632,1747344650009,-450.0,0.00013972,2]
[361211633,1747344650019,-450.0,0.00013972,2]
[361211634,1747344650028,-450.0,0.00013972,2]
[361211635,1747344650037,-219.405713,0.00013972,2]
[361211636,1747344650048,-450.0,0.00013972,2]
[361211637,1747344650058,-219.405713,0.00013972,2]
[361211638,1747344650068,-450.0,0.00013972,2]
[361211639,1747344650078,-450.0,0.00013972,2]
[361211640,1747344650088,-300.0,0.00013972,2]
[361211641,1747344650099,-450.0,0.00013972,2]
[361211642,1747344650117,-450.0,0.00013972,2]
[361211643,1747344650127,-450.0,0.00013972,2]
[361211644,1747344650137,-450.0,0.00013972,2]
[361211645,1747344650147,-450.0,0.00013972,2]
[361211646,1747344650158,-450.0,0.00013972,2]
[361211647,1747344650168,-450.0,0.00013972,2]
[361211648,1747344650177,-450.0,0.00013972,2]
[361211649,1747344650187,-467.29729973,0.00013972,2]
[361211650,1747344650197,-450.0,0.00013972,2]
[361211651,1747344650207,-151.0,0.00013972,2]
[361211652,1747344650218,-463.16230889,0.00013972,2]
[361211653,1747344650228,-350.07049,0.00013972,2]
[361211654,1747344650238,-300.0,0.00013972,2]
[361211655,1747344650248,-350.07049,0.00013972,2]
[361211656,1747344650258,-151.0,0.00013972,2]
[361211657,1747344650267,-450.0,0.00013972,2]
[361211658,1747344650276,-300.0,0.00013972,2]
[361211659,1747344650285,-450.0,0.00013972,2]
[361211660,1747344650295,-450.0,0.00013972,2]
[361211661,1747344650304,-450.0,0.00013972,2]
[361211662,1747344650313,-493.21,0.00013972,2]
[361211663,1747344650323,-300.0,0.00013972,2]
[361211664,1747344650332,-560.79,0.00013972,2]
[361211665,1747344650342,-450.0,0.00013972,2]
[361211666,1747344650351,-450.0,0.00013972,2]
[361211667,1747344650363,-450.0,0.00013972,2]
[361211668,1747344650372,-450.0,0.00013972,2]
[361211669,1747344650382,-450.0,0.00013972,2]
[361211670,1747344650392,-450.0,0.00013972,2]
[361211671,1747344650401,-450.0,0.00013972,2]
[361211672,1747344650411,-450.0,0.00013972,2]
[361211673,1747344650420,-450.0,0.00013972,2]
[361211674,1747344650429,-450.0,0.00013972,2]
[361211675,1747344650438,-450.0,0.00013972,2]
[361211676,1747344650448,-450.0,0.00013972,2]
[361211677,1747344650458,-450.0,0.00013972,2]
[361211678,1747344650468,-450.0,0.00013972,2]
[361211679,1747344650478,-450.0,0.00013972,2]
[361211680,1747344650488,-450.0,0.00013972,2]
[361211681,1747344650498,-450.0,0.00013972,2]
[361211682,1747344650507,-450.0,0.00013972,2]
[361211683,1747344650517,-450.0,0.00013972,2]
[361211684,1747344650526,-450.0,0.00013972,2]
[361211685,1747344650537,-450.0,0.00013972,2]
[361211686,1747344650546,-151.0,0.00013972,2]
[361211687,1747344650556,-450.0,0.00013972,2]
[361211688,1747344650566,-450.0,0.00013972,2]
[361211689,1747344650576,-450.0,0.00013972,2]
[361211690,1747344650586,-450.0,0.00013972,2]
[361211691,1747344650596,-450.0,0.00013972,2]
[361211692,1747344650605,-246.168612,0.00013972,2]
[361211693,1747344650619,-300.0,0.00013972,2]
[361211694,1747344650629,-450.0,0.00013972,2]
[361211695,1747344650639,-450.0,0.00013972,2]
[361211696,1747344650649,-151.0,0.00013972,2]
[361211697,1747344650658,-450.0,0.00013972,2]
[361211698,1747344650667,-450.0,0.00013972,2]
[361211699,1747344650677,-450.0,0.00013972,2]
[361211700,1747344650687,-450.0,0.00013972,2]
[361211701,1747344650696,-450.0,0.00013972,2]
[361211702,1747344650706,-450.0,0.00013972,2]
[361211703,1747344650715,-450.0,0.00013972,2]
[361211704,1747344650724,-450.0,0.00013972,2]
[361211705,1747344650734,-450.0,0.00013972,2]
[361211706,1747344650744,-450.0,0.00013972,2]
[361211707,1747344650753,-450.0,0.00013972,2]
[361211708,1747344650763,-450.0,0.00013972,2]
[361211709,1747344650772,-450.0,0.00013972,2]
[361211710,1747344650782,-450.0,0.00013972,2]
[361211711,1747344650791,-450.03,0.00013972,2]
[361211712,1747344650801,-275.65,0.00013972,2]
[361211713,1747344650811,-450.0,0.00013972,2]
[361211714,1747344650820,-450.0,0.00013972,2]
[361211715,1747344650830,-661.46,0.00013972,2]
[361211716,1747344650839,-450.0,0.00013972,2]
[361211717,1747344650849,-1230.85,0.00013972,2]
[361211718,1747344650953,-450.0,0.00013972,2]
[361211719,1747344650963,-450.0,0.00013972,2]
[361211720,1747344650973,-636.29,0.00013972,2]
[361211721,1747344650983,-450.0,0.00013972,2]
[361211722,1747344650992,-151.0,0.00013972,2]
[361211723,1747344651002,-151.0,0.00013972,2]
[361211724,1747344651011,-689.8,0.00013972,2]
[361211725,1747344651022,-469.9,0.00013972,2]
[361211726,1747344651031,-450.0,0.00013972,2]
[361211727,1747344651041,-450.0,0.00013972,2]
[361211728,1747344651052,-450.0,0.00013972,2]
[361211729,1747344651061,-450.0,0.00013972,2]
[361211730,1747344651071,-1163.57,0.00013972,2]
[361211731,1747344651081,-450.0,0.00013972,2]
[361211732,1747344651092,-450.0,0.00013972,2]
[361211733,1747344651103,-1336.525408,0.00013972,2]
[361211734,1747344651117,-1336.525408,0.00013972,2]
[361211735,1747344651127,-1336.525408,0.00013972,2]
[361211736,1747344651137,-450.0,0.00013972,2]
[361211737,1747344651147,-1336.525408,0.00013972,2]
[361211738,1747344651158,-450.0,0.00013972,2]
[361211739,1747344651168,-450.0,0.00013972,2]
[361211740,1747344651179,-450.0,0.00013972,2]
[361211741,1747344651189,-450.0,0.00013972,2]
[361211742,1747344651199,-450.0,0.00013972,2]
[361211743,1747344651209,-450.0,0.00013972,2]
[361211744,1747344651219,-450.0,0.00013972,2]
[361211745,1747344651229,-450.0,0.00013972,2]
[361211746,1747344651239,-450.0,0.00013972,2]
[361211747,1747344651248,-450.0,0.00013972,2]
[361211748,1747344651258,-450.0,0.00013972,2]
[361211749,1747344651267,-450.0,0.00013972,2]
[361211750,1747344651277,-450.0,0.00013972,2]
[361211751,1747344651288,-450.0,0.00013972,2]
[361211752,1747344651297,-450.0,0.00013972,2]
[361211753,1747344651307,-450.0,0.00013972,2]
[361211754,1747344651317,-450.0,0.00013972,2]
[361211755,1747344651327,-450.0,0.00013972,2]
[361211756,1747344651337,-681.56,0.00013972,2]
[361211757,1747344651347,-450.0,0.00013972,2]
[361211758,1747344651356,-151.0,0.00013972,2]
[361211759,1747344651371,-450.0,0.00013972,2]
[361211760,1747344651382,-243.011363,0.00013972,2]
[361211761,1747344651393,-151.0,0.00013972,2]
[361211762,1747344651403,-450.0,0.00013972,2]
[361211763,1747344651413,-180.491617,0.00013972,2]
[361211764,1747344651423,-151.0,0.00013972,2]
[361211765,1747344651434,-151.0,0.00013972,2]
[361211766,1747344651443,-151.0,0.00013972,2]
[361211767,1747344651453,-300.0,0.00013972,2]
[361211768,1747344651465,-180.491617,0.00013972,2]
[361211769,1747344651475,-300.0,0.00013972,2]
[361211770,1747344651484,-450.0,0.00013972,2]
[361211771,1747344651494,-450.0,0.00013972,2]
[361211772,1747344651504,-627.54,0.00013972,2]
[361211773,1747344651514,-355.14,0.00013972,2]
[361211774,1747344651524,-450.0,0.00013972,2]
[361211775,1747344651533,-450.0,0.00013972,2]
[361211776,1747344651543,-450.0,0.00013972,2]
[361211777,1747344651552,-450.0,0.00013972,2]
[361211778,1747344651562,-450.0,0.00013972,2]
[361211779,1747344651572,-605.86,0.00013972,2]
[361211780,1747344651582,-251.27677181,0.00013972,2]
[361211781,1747344651592,-450.0,0.00013972,2]
[361211782,1747344651601,-4332.07,0.00013972,2]
[361211783,1747344651612,-450.0,0.00013972,2]
[361211784,1747344651622,-450.0,0.00013972,2]
[361211785,1747344651632,-450.0,0.00013972,2]
[361211786,1747344651642,-450.0,0.00013972,2]
[361211787,1747344651651,-450.0,0.00013972,2]
[361211788,1747344651661,-766.75,0.00013972,2]
[361211789,1747344651671,-402.49212589,0.00013972,2]
[361211790,1747344651680,-528.55,0.00013972,2]
[361211791,1747344651690,-1137.57,0.00013972,2]
[361211792,1747344651699,-300.0,0.00013972,2]
[361211793,1747344651709,-1217.47,0.00013972,2]
[361211794,1747344651718,-450.0,0.00013972,2]
[361211795,1747344651727,-450.0,0.00013972,2]
[361211796,1747344651737,-450.0,0.00013972,2]
[361211797,1747344651746,-450.0,0.00013972,2]
[361211798,1747344651756,-151.0,0.00013972,2]
[361211799,1747344651765,-1129.17,0.00013972,2]
[361211800,1747344651775,-1158.4,0.00013972,2]
[361211801,1747344651784,-5147.71,0.00013972,2]
[361211802,1747344651794,-450.0,0.00013972,2]
[361211803,1747344651804,-300.0,0.00013972,2]
[361211804,1747344651813,-450.0,0.00013972,2]
[361211805,1747344651822,-473.35,0.00013972,2]
[361211806,1747344651832,-643.14,0.00013972,2]
[361211807,1747344651841,-450.0,0.00013972,2]
[361211808,1747344651851,-1678.95,0.00013972,2]
[361211809,1747344651861,-300.0,0.00013972,2]
[361211810,1747344651871,-450.0,0.00013972,2]
[361211811,1747344651880,-667.32,0.00013972,2]
[361211812,1747344651890,-707.63,0.00013972,2]
[361211813,1747344651901,-450.0,0.00013972,2]
[361211814,1747344651910,-450.0,0.00013972,2]
[361211815,1747344651919,-450.0,0.00013972,2]
[361211816,1747344651929,-1237.18,0.00013972,2]
[361211817,1747344651941,-1375.24,0.00013972,2]
[361211818,1747344651951,-450.0,0.00013972,2]
[361211819,1747344651960,-450.0,0.00013972,2]
[361211820,1747344651970,-8070.08,0.00013972,2]
[361211821,1747344651979,-450.0,0.00013972,2]
[361211822,1747344651989,-450.0,0.00013972,2]
[361211823,1747344651998,-450.0,0.00013972,2]
[361211824,1747344652008,-5206.47,0.00013972,2]
[361211825,1747344652017,-450.0,0.00013972,2]
[361211826,1747344652027,-450.0,0.00013972,2]
[361211827,1747344652036,-450.0,0.00013972,2]
[361211828,1747344652046,-450.0,0.00013972,2]
[361211829,1747344652055,-450.0,0.00013972,2]
[361211830,1747344652066,-450.0,0.00013972,2]
[361211831,1747344652076,-500.0,0.00013972,2]
[361211832,1747344652085,-783.98,0.00013972,2]
[361211833,1747344652098,-450.0,0.00013972,2]
[361211834,1747344652108,-450.0,0.00013972,2]
[361211835,1747344652119,-450.0,0.00013972,2]
[361211836,1747344652129,-972.21,0.00013972,2]
[361211837,1747344652139,-450.0,0.00013972,2]
[361211838,1747344652148,-1262.98,0.00013972,2]
[361211839,1747344652158,-151.0,0.00013972,2]
[361211840,1747344652168,-450.0,0.00013972,2]
[361211841,1747344652177,-151.0,0.00013972,2]
[361211842,1747344652188,-450.0,0.00013972,2]
[361211843,1747344652198,-450.0,0.00013972,2]
[361211844,1747344652207,-151.0,0.00013972,2]
[361211845,1747344652216,-450.0,0.00013972,2]
[361211846,1747344652226,-450.0,0.00013972,2]
[361211847,1747344652236,-450.0,0.00013972,2]
[361211848,1747344652245,-450.0,0.00013972,2]
[361211849,1747344652255,-450.0,0.00013972,2]
[361211850,1747344652264,-808.56,0.00013972,2]
[361211851,1747344652274,-2359.75,0.00013972,2]
[361211852,1747344652283,-490.28758589,0.00013972,2]
[361211853,1747344652294,-151.0,0.00013972,2]
[361211854,1747344652303,-450.0,0.00013972,2]
[361211855,1747344652313,-450.0,0.00013972,2]
[361211856,1747344652323,-450.0,0.00013972,2]
[361211857,1747344652333,-513.81,0.00013972,2]
[361211858,1747344652343,-450.0,0.00013972,2]
[361211859,1747344652353,-868.95,0.00013972,2]
[361211860,1747344652364,-841.97,0.00013972,2]
[361211861,1747344652374,-450.0,0.00013972,2]
[361211862,1747344652384,-450.0,0.00013972,2]
[361211863,1747344652395,-646.31,0.00013972,2]
[361211864,1747344652405,-450.0,0.00013972,2]
[361211865,1747344652415,-450.0,0.00013972,2]
[361211866,1747344652425,-1244.6,0.00013972,2]
[361211867,1747344652435,-151.0,0.00013972,2]
[361211868,1747344652444,-450.0,0.00013972,2]
[361211869,1747344652454,-451.61587039,0.00013972,2]
[361211870,1747344652464,-936.48,0.00013972,2]
[361211871,1747344652474,-300.0,0.00013972,2]
[361211872,1747344652483,-1019.8,0.00013972,2]
[361211873,1747344652493,-450.0,0.00013972,2]
[361211874,1747344652503,-595.09,0.00013972,2]
[361211875,1747344652513,-450.0,0.00013972,2]
[361211876,1747344652523,-450.0,0.00013972,2]
[361211877,1747344652533,-450.0,0.00013972,2]
[361211878,1747344652542,-450.0,0.00013972,2]
[361211879,1747344652552,-450.0,0.00013972,2]
[361211880,1747344652561,-608.28,0.00013972,2]
[361211881,1747344652654,-1290.84,0.00013972,2]
[361211882,1747344652664,-858.77,0.00013972,2]
[361211883,1747344652674,-929.23,0.00013972,2]
[361211884,1747344652685,-450.0,0.00013972,2]
[361211885,1747344652694,-758.48,0.00013972,2]
[361211886,1747344652704,-516.21,0.00013972,2]
[361211887,1747344652715,-450.0,0.00013972,2]
[361211888,1747344652725,-1067.28,0.00013972,2]
[361211889,1747344652735,-486.05,0.00013972,2]
[361211890,1747344652744,-1855.42,0.00013972,2]
[361211891,1747344652754,-450.0,0.00013972,2]
[361211892,1747344652763,-450.0,0.00013972,2]
[361211893,1747344652773,-1776.07,0.00013972,2]
[361211894,1747344652783,-450.0,0.00013972,2]
[361211895,1747344652792,-2649.52,0.00013972,2]
[361211896,1747344652802,-450.0,0.00013972,2]
[361211897,1747344652811,-2497.61,0.00013972,2]
[361211898,1747344652820,-450.0,0.00013972,2]
[361211899,1747344652830,-596.4,0.00013972,2]
[361211900,1747344652840,-450.0,0.00013972,2]
[361211901,1747344652850,-550.0,0.00013972,2]
[361211902,1747344652859,-450.0,0.00013972,2]
[361211903,1747344652870,-450.0,0.00013972,2]
[361211904,1747344652879,-450.0,0.00013972,2]
[361211905,1747344652889,-393.9,0.00013972,2]
[361211906,1747344652899,-766.39,0.00013972,2]
[361211907,1747344652909,-450.0,0.00013972,2]
[361211908,1747344652918,-2141.58,0.00013972,2]
[361211909,1747344652927,-450.0,0.00013972,2]
[361211910,1747344652938,-609.1,0.00013972,2]
[361211911,1747344652948,-450.0,0.00013972,2]
[361211912,1747344652958,-1384.56,0.00013972,2]
[361211913,1747344652968,-300.0,0.00013972,2]
[361211914,1747344652977,-450.0,0.00013972,2]
[361211915,1747344652987,-450.0,0.00013972,2]
[361211916,1747344652997,-450.0,0.00013972,2]
[361211917,1747344653007,-539.08938673,0.00013972,2]
[361211918,1747344653016,-450.0,0.00013972,2]
[361211919,1747344653026,-450.0,0.00013972,2]
[361211920,1747344653035,-151.0,0.00013972,2]
[361211921,1747344653045,-151.0,0.00013972,2]
[361211922,1747344653054,-450.0,0.00013972,2]
[361211923,1747344653065,-450.0,0.00013972,2]
[361211924,1747344653075,-450.0,0.00013972,2]
[361211925,1747344653086,-990.28,0.00013972,2]
[361211926,1747344653097,-300.0,0.00013972,2]
[361211927,1747344653109,-450.0,0.00013972,2]
[361211928,1747344653120,-1268.15,0.00013972,2]
[361211929,1747344653130,-927.06,0.00013972,2]
[361211930,1747344653142,-563.45,0.00013972,2]
[361211931,1747344653151,-450.0,0.00013972,2]
[361211932,1747344653161,-531.01128689,0.00013972,2]
[361211933,1747344653171,-803.62,0.00013972,2]
[361211934,1747344653182,-550.0,0.00013972,2]
[361211935,1747344653192,-450.0,0.00013972,2]
[361211936,1747344653202,-450.0,0.00013972,2]
[361211937,1747344653212,-450.0,0.00013972,2]
[361211938,1747344653222,-7259.87,0.00013972,2]
[361211939,1747344653232,-1271.98,0.00013972,2]
[361211940,1747344653241,-150.0,0.00013972,2]
[361211941,1747344653251,-1091.55,0.00013972,2]
[361211942,1747344653261,-450.0,0.00013972,2]
[361211943,1747344653271,-450.0,0.00013972,2]
[361211944,1747344653281,-621.45,0.00013972,2]
[361211945,1747344653292,-559.27,0.00013972,2]
[361211946,1747344653301,-450.0,0.00013972,2]
[361211947,1747344653311,-450.0,0.00013972,2]
[361211948,1747344653320,-1156.68,0.00013972,2]
[361211949,1747344653329,-450.0,0.00013972,2]
[361211950,1747344653339,-450.0,0.00013972,2]
[361211951,1747344653357,-1775.83,0.00013972,2]
[361211952,1747344653371,-450.0,0.00013972,2]
[361211953,1747344653381,-450.0,0.00013972,2]
[361211954,1747344653391,-450.0,0.00013972,2]
[361211955,1747344653401,-450.0,0.00013972,2]
[361211956,1747344653411,-494.83,0.00013972,2]
[361211957,1747344653421,-3787.56,0.00013972,2]
[361211958,1747344653432,-424.32024471,0.00013972,2]
[361211959,1747344653442,-450.0,0.00013972,2]
[361211960,1747344653452,-151.0,0.00014,2]
[361211961,1747344653462,-151.0,0.00014,2]
[361211962,1747344653472,-151.0,0.00014,2]
[361211963,1747344653482,-151.0,0.00014,2]
[361211964,1747344653492,-491517.9319594,0.00014,5]
[361211965,1747344653692,-133533.71945774,0.00014,5]
[361211966,1747344653718,-480.44,0.00014,5]
[361211969,1747344770171,-300.0,0.00012328,2]
[361211970,1747344782344,300.0,0.00012328,2]
[361211971,1747344844859,5000.0,0.00012329,2]
[361211972,1747344859963,5000.0,0.00012329,2]
[361211974,1747344875649,3253.0,0.00012329,2]
[361211995,1747345394918,1193.89,0.00027576,30]
[361212007,1747345556140,-4085.46999077,0.00012083,14]
[361212020,1747345654097,-228.60861426,0.00012205,2]
[361212023,1747345752135,-4771.39138574,0.00012205,2]